bitfinex/quotes_BTCUSD_20230403
["timestamp","ask_amount","ask_price","bid_price","bid_amount"]
[1680514562823,0.014303,28321.0,28315.0,0.0832]
[1680514563065,0.015123,28321.0,28315.0,0.2832]
[1680514563293,0.35497497,28320.0,28315.0,0.2832]
[1680514563510,0.49712984,28320.0,28315.0,0.2832]
[1680514563948,0.51125384,28320.0,28315.0,0.0832]
[1680514564174,0.04764926,28319.0,28315.0,0.2912]
[1680514564390,0.40280423,28319.0,28315.0,0.2832]
[1680514564606,0.40280423,28319.0,28315.0,0.2912]
[1680514565488,0.41692823,28319.0,28315.0,0.2912]
[1680514565703,0.41692823,28319.0,28315.0,0.2832]
[1680514565929,0.35497497,28318.0,28315.0,0.008]
[1680514566147,0.021782,28317.0,28315.0,0.008]
[1680514566372,0.35497497,28316.0,28315.0,0.008]
[1680514566608,0.35497497,28316.0,28312.0,0.20018]
[1680514566835,0.49694984,28316.0,28315.0,0.008]
[1680514567051,0.35497497,28316.0,28312.0,0.20018]
[1680514567269,0.35597497,28316.0,28315.0,0.008]
[1680514567710,0.37624597,28316.0,28315.0,0.008]
[1680514567931,0.37642597,28316.0,28315.0,0.008]
[1680514568176,0.00118,28316.0,28315.0,0.008]
[1680514568399,0.001,28316.0,28315.0,0.008]
[1680514569991,0.001,28316.0,28315.0,0.025658]
[1680514570214,0.001,28316.0,28315.0,0.0912]
[1680514570410,0.001,28316.0,28315.0,0.108858]
[1680514570686,0.001,28316.0,28315.0,0.0912]
[1680514570915,0.00089735,28316.0,28315.0,0.129044]
[1680514571859,0.00089735,28316.0,28315.0,0.0912]
[1680514572791,0.00089735,28316.0,28315.0,0.126524]
[1680514573493,0.00089735,28316.0,28315.0,0.0912]
[1680514573709,0.00089735,28316.0,28315.0,0.128634]
[1680514574956,0.00089735,28316.0,28315.0,0.0912]
[1680514575781,0.00089735,28316.0,28315.0,0.008]
[1680514577996,0.49784719,28316.0,28314.0,0.081858]
[1680514578223,0.88423656,28315.0,28311.0,0.00018]
[1680514578464,0.166,28312.0,28309.0,0.0219]
[1680514578679,1.8310936,28311.0,28309.0,0.0219]
[1680514578906,1.29170276,28310.0,28309.0,0.0219]
[1680514579125,1.38863176,28310.0,28309.0,0.0219]
[1680514579811,1.38881176,28310.0,28309.0,0.0219]
[1680514580702,1.40681176,28310.0,28309.0,0.0239]
[1680514580913,0.13556,28310.0,28309.0,0.0239]
[1680514581153,0.13538,28310.0,28309.0,0.0239]
[1680514583432,0.13556,28310.0,28309.0,0.0239]
[1680514585566,0.98555489,28310.0,28309.0,0.0239]
[1680514585797,1.07293497,28310.0,28309.0,0.0239]
[1680514586262,2.34446676,28310.0,28309.0,0.0239]
[1680514586462,2.32646676,28310.0,28309.0,0.0219]
[1680514586691,2.27106676,28310.0,28309.0,0.0219]
[1680514586910,0.97253497,28310.0,28309.0,0.0219]
[1680514587122,0.99953497,28310.0,28309.0,0.0219]
[1680514588249,0.06176,28310.0,28309.0,0.0219]
[1680514588473,0.06164,28310.0,28309.0,0.0219]
[1680514588695,0.06158,28310.0,28309.0,0.0219]
[1680514589189,0.047451,28310.0,28309.0,0.0219]
[1680514589415,0.020451,28310.0,28309.0,0.0219]
[1680514589649,0.027,28310.0,28309.0,0.97199564]
[1680514589882,0.04794452,28311.0,28309.0,1.02937364]
[1680514590134,0.014124,28320.0,28312.0,0.2]
[1680514590135,0.00879958,28318.0,28312.0,0.2]
[1680514590360,0.00018,28319.0,28312.0,0.2]
[1680514590612,0.00018,28320.0,28313.0,0.017659]
[1680514590874,0.00018,28322.0,28315.0,0.17657]
[1680514591120,0.003,28318.0,28315.0,0.194228]
[1680514591392,0.003,28318.0,28316.0,0.043951]
[1680514591576,0.003,28318.0,28316.0,0.518051]
[1680514591796,0.003,28318.0,28317.0,0.042846]
[1680514592018,0.00018,28321.0,28316.0,0.4741]
[1680514592238,0.002,28320.0,28316.0,0.4741]
[1680514592458,0.00018,28321.0,28316.0,0.4741]
[1680514592683,0.005,28318.0,28316.0,0.4741]
[1680514592901,0.005,28318.0,28317.0,0.2]
[1680514593134,6e-05,28322.0,28317.0,0.39483]
[1680514593348,0.002,28320.0,28317.0,0.2]
[1680514593575,0.35497497,28323.0,28317.0,0.2]
[1680514593797,0.002,28318.0,28317.0,0.2]
[1680514594013,0.00018,28321.0,28317.0,0.244776]
[1680514594229,0.04723798,28319.0,28317.0,0.2]
[1680514595106,0.00018,28320.0,28317.0,0.203]
[1680514595367,0.00018,28321.0,28317.0,0.2]
[1680514595587,0.001,28319.0,28317.0,0.203]
[1680514596263,0.00018,28321.0,28317.0,0.2]
[1680514596478,0.00018,28321.0,28317.0,0.203]
[1680514596479,0.00118,28321.0,28317.0,0.203]
[1680514596764,0.00118,28321.0,28317.0,0.2]
[1680514596765,0.00018,28321.0,28317.0,0.2]
[1680514596981,0.001,28319.0,28317.0,0.203]
[1680514598061,0.001,28319.0,28317.0,0.003]
[1680514598276,0.001,28319.0,28316.0,0.4741]
[1680514598277,0.014125,28319.0,28316.0,0.4741]
[1680514598521,0.014125,28319.0,28317.0,0.003]
[1680514598744,0.014834,28318.0,28316.0,0.4741]
[1680514598966,0.00118,28319.0,28317.0,0.003]
[1680514599202,0.04379931,28318.0,28317.0,0.003]
[1680514599420,0.04379931,28318.0,28316.0,0.47422]
[1680514599634,0.04379931,28318.0,28316.0,0.4741]
[1680514600076,0.014303,28321.0,28317.0,0.001]
[1680514600292,0.015403,28320.0,28316.0,0.4741]
[1680514601174,0.04337751,28319.0,28316.0,0.4741]
[1680514601389,0.014251,28318.0,28316.0,0.4741]
[1680514601608,0.016251,28318.0,28316.0,0.4751]
[1680514601871,0.002,28318.0,28316.0,0.4751]
[1680514602277,0.04337751,28319.0,28316.0,0.4741]
[1680514602479,0.015197,28318.0,28316.0,0.4751]
[1680514602698,0.015197,28318.0,28316.0,0.4741]
[1680514602828,0.017197,28318.0,28316.0,0.4751]
[1680514603029,0.002,28318.0,28316.0,0.4751]
[1680514603241,0.014303,28323.0,28316.0,0.4741]
[1680514603454,0.001,28318.0,28316.0,0.4751]
[1680514603686,0.00018,28321.0,28316.0,0.4741]
[1680514603897,0.002,28318.0,28316.0,0.4751]
[1680514604105,0.04269929,28317.0,28316.0,0.4741]
[1680514604346,0.04269929,28317.0,28315.0,0.08288]
[1680514604546,0.04269929,28317.0,28314.0,0.28332]
[1680514604759,0.04269929,28317.0,28314.0,0.28338]
[1680514605169,0.001,28318.0,28316.0,0.001]
[1680514605378,0.014123,28321.0,28314.0,0.28338]
[1680514605586,0.003,28317.0,28314.0,0.28438]
[1680514605787,0.003,28317.0,28314.0,0.2842]
[1680514605991,0.15627787,28321.0,28314.0,0.2832]
[1680514606202,0.003,28318.0,28316.0,0.001]
[1680514606412,0.003,28318.0,28314.0,0.0832]
[1680514606413,0.028958,28320.0,28314.0,0.0832]
[1680514606620,0.003,28317.0,28314.0,0.0842]
[1680514607048,0.04209055,28319.0,28314.0,0.0832]
[1680514607260,0.016795,28318.0,28316.0,0.001]
[1680514608338,0.014795,28318.0,28314.0,0.0832]
[1680514608752,0.014795,28318.0,28314.0,0.0842]
[1680514608753,0.003,28317.0,28314.0,0.0842]
[1680514608952,0.04209055,28319.0,28314.0,0.0832]
[1680514609165,0.016748,28318.0,28316.0,0.001]
[1680514609367,0.014508,28319.0,28314.0,0.0832]
[1680514609583,0.003,28317.0,28314.0,0.0842]
[1680514610001,0.014124,28320.0,28314.0,0.0832]
[1680514610208,0.002,28318.0,28316.0,0.001]
[1680514610420,0.014547,28319.0,28314.0,0.0832]
[1680514611039,0.04124772,28318.0,28314.0,0.0832]
[1680514611447,0.003,28317.0,28314.0,0.0842]
[1680514611652,0.04124772,28318.0,28314.0,0.0832]
[1680514611910,0.014191,28317.0,28314.0,0.0842]
[1680514612116,0.014191,28317.0,28313.0,0.0832]
[1680514612321,0.15916587,28317.0,28314.0,0.001]
[1680514612578,0.014397,28316.0,28312.0,0.68878]
[1680514612800,0.14197487,28317.0,28312.0,0.6886]
[1680514613025,0.002,28317.0,28314.0,0.001]
[1680514613214,0.01493,28318.0,28312.0,0.6886]
[1680514613374,0.14197487,28318.0,28314.0,0.001]
[1680514613586,0.014869,28317.0,28314.0,0.001]
[1680514613773,0.36909897,28319.0,28314.0,0.001]
[1680514613975,0.015109,28318.0,28314.0,0.001]
[1680514614443,0.015109,28318.0,28312.0,0.68878]
[1680514614633,0.001,28317.0,28314.0,0.001]
[1680514614806,0.36927997,28319.0,28312.0,0.68878]
[1680514615010,0.51125484,28319.0,28314.0,0.001]
[1680514615211,0.014198,28318.0,28312.0,0.68878]
[1680514615509,0.14197487,28318.0,28312.0,0.68878]
[1680514615951,0.14397487,28318.0,28312.0,0.68978]
[1680514616176,0.14197487,28318.0,28312.0,0.68878]
[1680514616394,0.14397487,28318.0,28312.0,0.68978]
[1680514617570,0.14197487,28318.0,28312.0,0.68878]
[1680514617783,0.14397487,28318.0,28312.0,0.68978]
[1680514617977,0.14197487,28318.0,28313.0,0.2]
[1680514618240,0.002,28318.0,28313.0,0.2]
[1680514618867,0.35515497,28319.0,28313.0,0.2]
[1680514619080,0.002,28318.0,28313.0,0.2]
[1680514619304,0.35515497,28319.0,28313.0,0.2]
[1680514619550,0.35515497,28319.0,28313.0,0.201]
[1680514619551,0.001,28318.0,28313.0,0.201]
[1680514620196,0.001,28318.0,28313.0,0.001]
[1680514622749,0.14297487,28318.0,28313.0,0.001]
[1680514623012,0.001,28318.0,28313.0,0.018659]
[1680514623557,0.001,28318.0,28313.0,0.218659]
[1680514623754,0.001,28318.0,28313.0,0.218839]
[1680514624217,0.05179696,28317.0,28313.0,0.218839]
[1680514624625,0.05179696,28317.0,28314.0,0.04366]
[1680514624828,0.05179696,28317.0,28313.0,0.218839]
[1680514625191,0.05179696,28317.0,28313.0,0.217839]
[1680514625398,0.05179696,28317.0,28314.0,0.001]
[1680514626204,0.35515497,28319.0,28314.0,0.001]
[1680514626437,0.35497497,28319.0,28313.0,0.217839]
[1680514626799,0.00018,28320.0,28313.0,0.217839]
[1680514626800,0.001,28317.0,28313.0,0.218839]
[1680514627011,0.41408,28322.0,28314.0,0.042615]
[1680514627221,1.27091866,28321.0,28315.0,0.017658]
[1680514627489,0.01493,28320.0,28315.0,0.017658]
[1680514627819,0.76905497,28322.0,28315.0,0.017658]
[1680514628022,0.001,28319.0,28315.0,0.017658]
[1680514628232,0.00018,28321.0,28315.0,0.017658]
[1680514628433,0.005,28320.0,28315.0,0.017658]
[1680514629215,0.91102984,28322.0,28315.0,0.017658]
[1680514629428,1.28636976,28321.0,28315.0,0.017658]
[1680514629633,0.005,28319.0,28315.0,0.017658]
[1680514629832,0.14215487,28321.0,28315.0,0.017658]
[1680514630061,0.02004398,28320.0,28315.0,0.017658]
[1680514630272,0.14197487,28321.0,28315.0,0.017658]
[1680514630482,0.005,28319.0,28315.0,0.017658]
[1680514630689,0.14197487,28321.0,28315.0,0.017658]
[1680514630893,0.019464,28320.0,28315.0,0.017658]
[1680514631094,0.005,28320.0,28315.0,0.017658]
[1680514631296,0.43777497,28322.0,28315.0,0.017658]
[1680514631507,1.28541662,28321.0,28315.0,0.017658]
[1680514631892,0.014683,28320.0,28315.0,0.017658]
[1680514632101,0.14197487,28321.0,28315.0,0.017658]
[1680514632305,0.005,28319.0,28314.0,0.00018]
[1680514632511,0.14197487,28319.0,28314.0,0.00018]
[1680514632733,0.14197487,28319.0,28315.0,0.017658]
[1680514632939,0.00018,28323.0,28317.0,0.2]
[1680514633149,1.2708337,28324.0,28318.0,0.017656]
[1680514633354,1.62580867,28324.0,28318.0,0.017656]
[1680514633736,0.005,28319.0,28318.0,0.017836]
[1680514633996,0.00018,28325.0,28318.0,0.017836]
[1680514634200,0.0828,28326.0,28318.0,0.017656]
[1680514634201,0.018,28324.0,28318.0,0.017656]
[1680514634400,1.27079264,28323.0,28318.0,0.017656]
[1680514634780,1.27079264,28323.0,28318.0,0.017836]
[1680514635004,1.27079264,28323.0,28319.0,0.08408358]
[1680514635234,1.27079264,28323.0,28319.0,0.22854187]
[1680514635451,0.00018,28325.0,28319.0,0.22854187]
[1680514635670,1.35359175,28326.0,28319.0,0.22854187]
[1680514635891,0.018,28323.0,28319.0,0.10191858]
[1680514636114,0.22477487,28326.0,28319.0,0.10191858]
[1680514636115,0.22495487,28326.0,28319.0,0.10191858]
[1680514636334,0.025,28323.0,28319.0,0.08408358]
[1680514636559,0.025,28323.0,28319.0,0.10191858]
[1680514637202,0.025,28323.0,28319.0,0.08426358]
[1680514637390,0.025,28323.0,28319.0,0.08408358]
[1680514638977,0.025,28323.0,28320.0,0.08408358]
[1680514639219,0.04809665,28322.0,28320.0,0.08408358]
[1680514639434,0.04809665,28322.0,28319.0,0.21088687]
[1680514639903,0.04809665,28322.0,28320.0,0.08408358]
[1680514640133,0.015066,28321.0,28319.0,0.08426358]
[1680514640374,0.014124,28320.0,28318.0,0.08426358]
[1680514640592,0.014964,28319.0,28318.0,0.08408358]
[1680514640816,0.014981,28320.0,28318.0,0.08408358]
[1680514641520,0.032981,28320.0,28318.0,0.08408358]
[1680514641736,0.018,28320.0,28318.0,0.08408358]
[1680514642158,0.015137,28319.0,28318.0,0.08408358]
[1680514642619,0.018,28320.0,28318.0,0.08408358]
[1680514642866,0.014993,28319.0,28316.0,0.21070687]
[1680514643091,0.014993,28319.0,28317.0,0.08408358]
[1680514643536,0.014304,28321.0,28317.0,0.08408358]
[1680514643537,0.014962,28320.0,28317.0,0.08408358]
[1680514643980,0.014962,28320.0,28316.0,0.21070687]
[1680514644422,0.029086,28320.0,28316.0,0.21070687]
[1680514644643,0.015276,28319.0,28316.0,0.21070687]
[1680514645081,0.015276,28319.0,28317.0,0.08408358]
[1680514645517,0.015276,28319.0,28316.0,0.21086297]
[1680514645749,0.015276,28319.0,28316.0,0.21070687]
[1680514645961,0.005,28319.0,28316.0,0.21070687]
[1680514646177,0.015435,28318.0,28316.0,0.21070687]
[1680514646525,0.005,28319.0,28316.0,0.21070687]
[1680514646770,0.014415,28318.0,28316.0,0.21070687]
[1680514646995,0.005,28319.0,28316.0,0.21070687]
[1680514647619,0.014326,28318.0,28316.0,0.21070687]
[1680514647833,0.005,28319.0,28316.0,0.21070687]
[1680514648040,0.015656,28318.0,28316.0,0.21070687]
[1680514648258,0.005,28319.0,28316.0,0.21070687]
[1680514648464,0.01555,28318.0,28316.0,0.21070687]
[1680514648675,0.014304,28321.0,28316.0,0.21070687]
[1680514648885,0.005,28318.0,28316.0,0.21070687]
[1680514649090,0.014141,28317.0,28316.0,0.21070687]
[1680514649294,0.005,28318.0,28316.0,0.08408358]
[1680514649704,0.015419,28317.0,28316.0,0.08408358]
[1680514651004,0.005,28317.0,28316.0,0.08408358]
[1680514651265,0.38869997,28317.0,28314.0,0.08423968]
[1680514651499,0.015223,28316.0,28314.0,0.08408358]
[1680514652440,0.001,28316.0,28314.0,0.08408358]
[1680514652867,0.014126,28315.0,28313.0,0.21086297]
[1680514653128,0.001,28316.0,28313.0,0.21070687]
[1680514653573,0.014125,28318.0,28313.0,0.21070687]
[1680514653785,0.01493,28317.0,28313.0,0.21070687]
[1680514654003,0.0473166,28315.0,28313.0,0.21070687]
[1680514654232,0.0453166,28315.0,28313.0,0.21086297]
[1680514654464,0.0453166,28315.0,28313.0,0.21070687]
[1680514654885,0.0473166,28315.0,28313.0,0.08408358]
[1680514655888,0.002,28315.0,28313.0,0.08408358]
[1680514656849,0.002,28315.0,28313.0,0.21070687]
[1680514657067,0.002,28315.0,28313.0,0.08408358]
[1680514658880,0.58014984,28314.0,28313.0,0.06363258]
[1680514659126,0.58014984,28314.0,28308.0,0.25185835]
[1680514659127,0.5713,28313.0,28308.0,0.0001561]
[1680514659372,0.283,28309.0,28307.0,0.00585119]
[1680514659605,0.283,28309.0,28307.0,0.00183039]
[1680514659606,0.60918384,28308.0,28307.0,0.00183039]
[1680514659859,0.76720897,28308.0,28307.0,0.00183039]
[1680514660303,0.81243556,28308.0,28305.0,0.01]
[1680514660522,0.015201,28307.0,28305.0,0.01]
[1680514660756,0.042393,28306.0,28305.0,0.01]
[1680514661001,0.057407,28306.0,28305.0,0.01]
[1680514661215,0.09993505,28306.0,28305.0,0.01]
[1680514661434,0.45491002,28306.0,28305.0,0.01]
[1680514661654,0.45509002,28306.0,28305.0,0.01]
[1680514662095,0.53811002,28306.0,28305.0,0.01]
[1680514662732,0.55611002,28306.0,28305.0,0.01]
[1680514662902,0.53811002,28306.0,28305.0,0.01]
[1680514663123,0.56311002,28306.0,28305.0,0.01]
[1680514664147,0.50813505,28306.0,28305.0,0.01]
[1680514664350,0.50819505,28306.0,28305.0,0.01]
[1680514664547,0.50831505,28306.0,28305.0,0.01]
[1680514664759,0.18005305,28306.0,28305.0,0.01]
[1680514665186,0.056518,28310.0,28305.0,0.01]
[1680514665187,0.08436526,28318.0,28306.0,0.15]
[1680514665392,0.141227,28324.0,28306.0,0.15]
[1680514665393,0.08436526,28325.0,28312.0,0.2]
[1680514665593,0.20919461,28328.0,28314.0,0.12662329]
[1680514665594,0.00018,28328.0,28314.0,0.12662329]
[1680514665796,0.35497497,28328.0,28318.0,0.3713]
[1680514666049,0.6082,28332.0,28319.0,0.79313897]
[1680514666050,0.00018,28331.0,28319.0,0.79313897]
[1680514666224,0.039673,28327.0,28326.0,0.0832]
[1680514666431,0.039673,28327.0,28326.0,0.131385]
[1680514666844,0.039673,28327.0,28326.0,0.149036]
[1680514667058,0.001,28327.0,28326.0,0.1741921]
[1680514667274,0.02409,28333.0,28326.0,0.1491921]
[1680514667488,0.02409,28333.0,28327.0,0.046565]
[1680514667695,0.02409,28333.0,28329.0,0.0832]
[1680514667905,0.02409,28333.0,28331.0,0.0832]
[1680514668112,0.02409,28333.0,28332.0,0.049656]
[1680514668319,0.02409,28333.0,28332.0,0.067303]
[1680514668753,0.02509,28333.0,28332.0,0.049656]
[1680514668956,0.02409,28333.0,28332.0,0.049656]
[1680514669159,0.02409,28333.0,28332.0,0.08520087]
[1680514669388,0.02509,28333.0,28332.0,0.08520087]
[1680514669599,0.02409,28333.0,28332.0,0.06720087]
[1680514669803,0.02409,28333.0,28332.0,0.07455387]
[1680514669804,0.16706487,28333.0,28332.0,0.07455387]
[1680514670019,0.02409,28333.0,28332.0,0.04955387]
[1680514670258,0.10306201,28333.0,28329.0,0.0678331]
[1680514670465,0.60101185,28333.0,28332.0,0.023]
[1680514670664,0.45903698,28333.0,28332.0,0.023]
[1680514671270,0.45803698,28333.0,28329.0,0.017649]
[1680514671480,0.10406201,28333.0,28332.0,0.023]
[1680514671647,0.10306201,28333.0,28332.0,0.017647]
[1680514671861,0.10406201,28333.0,28332.0,0.040647]
[1680514672695,0.10306201,28333.0,28332.0,0.017647]
[1680514672901,0.10406201,28333.0,28332.0,0.087647]
[1680514673785,0.24603688,28333.0,28332.0,0.023]
[1680514674006,0.10406201,28333.0,28332.0,0.023]
[1680514674659,0.10406201,28333.0,28332.0,0.040647]
[1680514674880,0.10406201,28333.0,28332.0,0.085796]
[1680514675501,0.10406201,28333.0,28332.0,0.086496]
[1680514677971,0.10406201,28333.0,28332.0,0.040647]
[1680514679133,0.10406201,28333.0,28332.0,0.023]
[1680514685173,0.10406201,28333.0,28332.0,0.072157]
[1680514685623,0.10406201,28333.0,28332.0,0.173004]
[1680514686539,0.10406201,28333.0,28332.0,0.1731601]
[1680514687217,0.02509,28333.0,28332.0,0.1731601]
[1680514687443,0.02509,28333.0,28332.0,0.173004]
[1680514687899,0.02509,28333.0,28332.0,0.170504]
[1680514692032,0.02409,28333.0,28332.0,0.066804]
[1680514692713,0.02409,28333.0,28332.0,0.094804]
[1680514692919,0.02409,28333.0,28332.0,0.066804]
[1680514693154,0.62297484,28333.0,28332.0,0.01624629]
[1680514693368,0.0832,28332.0,28323.0,0.0001561]
[1680514693592,0.097119,28330.0,28322.0,0.1607829]
[1680514693814,0.49694984,28329.0,28322.0,0.1607829]
[1680514694077,0.49694984,28329.0,28323.0,1.16207226]
[1680514694292,0.56168032,28329.0,28323.0,1.16222836]
[1680514694506,0.56186032,28329.0,28323.0,1.16207226]
[1680514695169,0.56186032,28329.0,28323.0,1.16222836]
[1680514695822,0.56286032,28329.0,28323.0,1.18322836]
[1680514696040,0.56186032,28329.0,28323.0,0.0001561]
[1680514696256,0.56286032,28329.0,28323.0,0.021]
[1680514696697,0.56268032,28329.0,28323.0,0.021]
[1680514696914,0.56268032,28329.0,28322.0,0.1784359]
[1680514697129,0.56168032,28329.0,28323.0,1.12364159]
[1680514697341,0.56186032,28329.0,28323.0,1.12364159]
[1680514697770,0.56186032,28329.0,28322.0,0.178592]
[1680514697985,0.56168032,28329.0,28323.0,0.021]
[1680514698201,0.56168032,28329.0,28322.0,0.1784359]
[1680514698420,0.56168032,28329.0,28323.0,0.021]
[1680514698635,0.57679932,28329.0,28323.0,0.021]
[1680514698853,0.57579932,28329.0,28322.0,0.1607829]
[1680514699100,0.66744719,28329.0,28323.0,0.021]
[1680514699319,0.41970545,28329.0,28323.0,0.017653]
[1680514699562,0.42070545,28329.0,28323.0,0.038653]
[1680514699782,0.41970545,28329.0,28323.0,0.017653]
[1680514700215,0.42070545,28329.0,28323.0,0.038653]
[1680514700435,0.56268032,28329.0,28323.0,0.038653]
[1680514700879,0.02889816,28325.0,28319.0,0.17110184]
[1680514701097,0.02889816,28325.0,28323.0,0.017653]
[1680514701098,0.14197487,28324.0,28323.0,0.017653]
[1680514701312,0.02907816,28325.0,28323.0,0.05155]
[1680514701525,0.02889816,28325.0,28323.0,0.017653]
[1680514701745,0.02889816,28325.0,28324.0,0.033887]
[1680514701966,0.03189816,28325.0,28323.0,0.017653]
[1680514702179,0.06756331,28324.0,28323.0,0.017653]
[1680514702386,0.06756331,28324.0,28323.0,0.05047]
[1680514702599,0.06756331,28324.0,28323.0,0.05147]
[1680514703042,0.06756331,28324.0,28323.0,0.05247]
[1680514703953,0.06756331,28324.0,28323.0,0.05047]
[1680514704218,0.07056331,28324.0,28323.0,0.05147]
[1680514704656,0.06756331,28324.0,28323.0,0.05047]
[1680514704878,0.06856331,28324.0,28323.0,0.05147]
[1680514705345,0.06856331,28324.0,28323.0,2.5761242]
[1680514706238,0.001,28324.0,28323.0,2.5761242]
[1680514706466,0.001,28324.0,28323.0,3.0529242]
[1680514706693,0.02889816,28331.0,28325.0,0.54240184]
[1680514706908,0.02889816,28331.0,28327.0,0.0829]
[1680514707078,0.02889816,28331.0,28328.0,0.049118]
[1680514707310,0.02889816,28331.0,28329.0,0.033696]
[1680514707497,0.02889816,28331.0,28329.0,0.051345]
[1680514707701,0.02889816,28331.0,28330.0,0.033663]
[1680514707908,0.03089816,28331.0,28329.0,0.033365]
[1680514708174,0.04416477,28330.0,28329.0,0.033365]
[1680514708392,0.04416477,28330.0,28329.0,0.046365]
[1680514709962,0.04416477,28330.0,28329.0,0.033365]
[1680514710176,0.04416477,28330.0,28329.0,0.046365]
[1680514710397,0.04416477,28330.0,28329.0,0.033365]
[1680514710640,0.04616477,28330.0,28329.0,0.046365]
[1680514710831,0.04416477,28330.0,28329.0,0.11755214]
[1680514711064,0.04616477,28330.0,28329.0,0.046365]
[1680514711259,0.002,28330.0,28329.0,0.046365]
[1680514711503,0.02907816,28331.0,28329.0,0.033365]
[1680514711696,0.002,28330.0,28329.0,0.046365]
[1680514712604,0.02907816,28331.0,28329.0,0.033365]
[1680514712803,0.002,28330.0,28329.0,0.046365]
[1680514712924,0.02907816,28331.0,28329.0,0.033365]
[1680514713152,0.04543549,28330.0,28329.0,0.046365]
[1680514713562,0.04343549,28330.0,28329.0,0.033365]
[1680514713768,0.04543549,28330.0,28329.0,0.046365]
[1680514713978,0.04343549,28330.0,28329.0,0.033365]
[1680514714193,0.002,28330.0,28329.0,0.14820114]
[1680514714413,0.002,28330.0,28329.0,0.13520114]
[1680514714630,0.02889816,28331.0,28329.0,0.13520114]
[1680514714844,0.02889816,28331.0,28330.0,0.031738]
[1680514716087,0.03089816,28331.0,28330.0,0.044738]
[1680514716300,0.02889816,28331.0,28330.0,0.031738]
[1680514716714,0.03089816,28331.0,28330.0,0.044738]
[1680514716938,0.02889816,28331.0,28330.0,0.049387]
[1680514717143,0.03089816,28331.0,28330.0,0.062387]
[1680514717356,0.02889816,28331.0,28330.0,0.049387]
[1680514717567,0.03089816,28331.0,28330.0,0.044738]
[1680514717785,0.03089816,28331.0,28330.0,0.062387]
[1680514718399,0.02889816,28331.0,28330.0,0.049387]
[1680514718599,0.03089816,28331.0,28330.0,0.062387]
[1680514718804,0.02889816,28331.0,28330.0,0.049387]
[1680514719028,0.3713,28330.0,28326.0,0.03480362]
[1680514719281,0.3713,28330.0,28321.0,0.00886769]
[1680514719282,0.02889816,28324.0,28322.0,0.00018]
[1680514719476,0.02889816,28320.0,28319.0,0.00018]
[1680514719694,0.20537703,28320.0,28316.0,0.00018]
[1680514719910,0.014302,28324.0,28315.0,0.23294576]
[1680514719911,0.02889816,28317.0,28315.0,0.23294576]
[1680514720126,0.14197487,28316.0,28315.0,0.039558]
[1680514720370,0.02889816,28317.0,28315.0,0.35822431]
[1680514720576,0.02889816,28317.0,28315.0,0.23294576]
[1680514720792,0.02889816,28317.0,28315.0,0.0219]
[1680514721451,0.02889816,28317.0,28316.0,0.005]
[1680514721676,0.02889816,28317.0,28315.0,0.0219]
[1680514721901,0.02989816,28317.0,28315.0,0.0329]
[1680514722119,0.02889816,28317.0,28315.0,0.0219]
[1680514722331,0.02989816,28317.0,28316.0,0.005]
[1680514722564,0.02889816,28317.0,28315.0,0.0219]
[1680514722777,0.03089816,28317.0,28315.0,0.0219]
[1680514723472,0.002,28317.0,28315.0,0.35497497]
[1680514723692,0.002,28317.0,28316.0,0.90339418]
[1680514723920,0.002,28317.0,28316.0,0.81413859]
[1680514724145,0.002,28317.0,28316.0,0.60309283]
[1680514724617,0.02889816,28320.0,28316.0,0.75309283]
[1680514724836,0.02889816,28320.0,28317.0,0.023203]
[1680514725254,0.02889816,28320.0,28317.0,0.173203]
[1680514725459,0.02889816,28320.0,28318.0,0.022878]
[1680514725881,0.03089816,28320.0,28318.0,0.022878]
[1680514726113,0.15,28330.0,28318.0,0.022878]
[1680514726114,0.02889816,28325.0,28320.0,0.3713]
[1680514726360,0.02889816,28330.0,28326.0,0.3713]
[1680514726584,0.02889816,28330.0,28327.0,0.024573]
[1680514727032,0.02889816,28330.0,28326.0,0.023255]
[1680514727231,0.02889816,28330.0,28324.0,0.017652]
[1680514727463,0.02889816,28326.0,28325.0,0.041833]
[1680514728511,0.02889816,28326.0,28325.0,0.290033]
[1680514728929,9.816e-05,28326.0,28325.0,1.10060076]
[1680514729142,9.816e-05,28326.0,28325.0,1.12774708]
[1680514729364,9.816e-05,28326.0,28325.0,1.14974708]
[1680514729635,9.816e-05,28326.0,28325.0,0.99974708]
[1680514729851,9.816e-05,28326.0,28325.0,1.08403673]
[1680514730284,9.816e-05,28326.0,28325.0,1.06203673]
[1680514730492,9.816e-05,28326.0,28325.0,1.09003673]
[1680514730699,9.816e-05,28326.0,28325.0,1.06203673]
[1680514730922,9.816e-05,28326.0,28325.0,1.09003673]
[1680514731136,9.816e-05,28326.0,28325.0,1.09853673]
[1680514731351,9.816e-05,28326.0,28325.0,0.97209762]
[1680514731573,9.816e-05,28326.0,28325.0,0.96359762]
[1680514731983,9.816e-05,28326.0,28325.0,0.59229762]
[1680514733040,9.816e-05,28326.0,28325.0,0.56429762]
[1680514733247,9.816e-05,28326.0,28325.0,0.20932265]
[1680514733517,9.816e-05,28326.0,28325.0,0.23732265]
[1680514734629,9.816e-05,28326.0,28325.0,0.20932265]
[1680514734853,9.816e-05,28326.0,28325.0,0.23732265]
[1680514735694,9.816e-05,28326.0,28325.0,0.36376176]
[1680514736180,9.816e-05,28326.0,28325.0,0.27947211]
[1680514739049,0.02409,28333.0,28325.0,0.44805086]
[1680514739264,0.37906497,28333.0,28326.0,0.10786712]
[1680514739487,0.37924497,28333.0,28326.0,0.10200012]
[1680514739746,0.52121984,28333.0,28326.0,0.10200012]
[1680514740415,0.52121984,28333.0,28326.0,0.13000012]
[1680514740853,0.35497497,28332.0,28326.0,0.13000012]
[1680514741067,0.49712984,28332.0,28326.0,0.13000012]
[1680514741733,0.00018,28332.0,28326.0,0.41332872]
[1680514741955,0.02409,28333.0,28327.0,0.023821]